Workbook

Sheet 9 DÍAS (1 UA)
C1: FOLIOS PENDIENTES A LA FECHA DE REPORTE
C5: FOLIOS PENDIENTES A LA FECHA DE REPORTE
B7: TIEMPO DE ATENCIÓN A SOLICITUDES DE INFORMACIÓN, FOLIOS DEL 05 DE MAYO AL 20 DE JUNIO DE 2016
B8: ATENDIDAS POR "UNA UNIDAD ADMINISTRATIVA" (10 DÍAS HÁBILES)
B9: Secretaría Técnica | D9: Secretaría Ejecutiva | F9: Contraloría | H9: Dirección Jurídica y Desarrollo Normativo | J9: Dirección de Capacitación y Cultura de la Transparencia | L9: Dirección de Evaluación y Estudios | N9: Dirección de Datos Personales | P9: Dirección de Vinculación con la Sociedad | R9: Dirección de Tecnologías de Información | T9: Dirección de Administración y Finanzas | V9: Dirección de Comunicación Social | X9: Oficina de Información Pública
B10: Folio | C10: Días | D10: Folio | E10: Días | F10: Folio | G10: Días | H10: Folio | I10: Días | J10: Folio | K10: Días | L10: Folio | M10: Días | N10: Folio | O10: Días | P10: Folio | Q10: Días | R10: Folio | S10: Días | T10: Folio | U10: Días | V10: Folio | W10: Días | X10: Folio | Y10: Días
A11: 1 | B11: 3100000075916 | C11: 9 | D11: 3100000109416 | F11: 3100000107916 | G11: 5 | H11: 3100000079716 | I11: 8 | J11: 3100000095316 | K11: 3 | L11: 3100000075516 | M11: 6 | N11: 3100000077416 | O11: 7 | P11: 3100000075816 | Q11: 3 | R11: 3100000076216 | S11: 3 | T11: 3100000079216 | U11: 6 | V11: 3100000078716 | W11: 2 | X11: 3100000111516
A12: =SUM(A11+1) -> 2 | B12: 3100000076016 | C12: 9 | D12: 3100000110516 | H12: 3100000090916 | I12: 9 | J12: 3100000110616 | L12: 3100000079516 | M12: 5 | N12: 3100000078516 | O12: 7 | R12: 3100000077516 | S12: 3 | T12: 3100000079616 | U12: 6 | X12: 3100000111616
A13: =SUM(A12+1) -> 3 | B13: 3100000084116 | C13: 5 | D13: 3100000115216 | H13: 3100000098516 | I13: 9 | L13: 3100000089816 | M13: 2 | N13: 3100000078616 | O13: 7 | R13: 3100000094016 | S13: 3 | T13: 3100000081016 | U13: 5 | X13: 3100000111716
A14: 4 | B14: 3100000084216 | C14: 5 | D14: 3100000115316 | H14: 3100000103016 | I14: 9 | L14: 3100000091216 | M14: 2 | N14: 3100000080216 | O14: 6 | R14: 3100000094116 | S14: 3 | T14: 3100000084616 | U14: 4 | X14: 3100000111816
A15: 5 | B15: 3100000084316 | C15: 5 | D15: 3100000115616 | H15: 3100000103116 | I15: 7 | L15: 3100000105916 | M15: 2 | N15: 3100000080316 | O15: 6 | R15: 3100000094216 | S15: 3 | T15: 3100000091016 | U15: 4 | X15: 3100000111916
A16: 6 | B16: 3100000084416 | C16: 5 | D16: 3100000115816 | H16: 3100000103216 | I16: 7 | L16: 3100000110016 | N16: 3100000080416 | O16: 6 | R16: 3100000094316 | S16: 3 | T16: 3100000091716 | U16: 9 | X16: 3100000112016
A17: 7 | B17: 3100000084516 | C17: 5 | H17: 3100000104116 | I17: 6 | L17: 3100000112816 | N17: 3100000080516 | O17: 6 | R17: 3100000095916 | S17: 3 | T17: 3100000091816 | U17: 9 | X17: 3100000112116
A18: 8 | B18: 3100000085816 | C18: 4 | H18: 3100000104716 | I18: 5 | L18: 3100000113316 | N18: 3100000080616 | O18: 6 | R18: 3100000102416 | S18: 4 | T18: 3100000092516 | U18: 3 | X18: 3100000112216
A19: 9 | B19: 3100000085916 | C19: 4 | H19: 3100000105616 | I19: 8 | L19: 3100000113416 | N19: 3100000080716 | O19: 6 | R19: 3100000110116 | T19: 3100000097216 | U19: 7 | X19: 3100000112316
A20: 10 | B20: 3100000087916 | C20: 7 | H20: 3100000106916 | I20: 7 | N20: 3100000106016 | O20: 8 | R20: 3100000111116 | T20: 3100000097316 | U20: 7 | X20: 3100000112416
A21: 11 | B21: 3100000102316 | C21: 6 | H21: 3100000108016 | R21: 3100000113816 | T21: 3100000098316 | U21: 9 | X21: 3100000112516
A22: 12 | B22: 3100000108116 | H22: 3100000108216 | R22: 3100000113916 | T22: 3100000098416 | U22: 9 | X22: 3100000112616
A23: 13 | B23: 3100000109316 | H23: 3100000108316 | T23: 3100000103616 | U23: 5 | X23: 3100000112716
A24: 14 | B24: 3100000109816 | H24: 3100000116216 | T24: 3100000105316 | U24: 1 | X24: 3100000113716
A25: 15 | T25: 3100000106416
A26: 16 | T26: 3100000106516
A27: 17 | T27: 3100000106616
A28: 18 | T28: 3100000106716
A29: 19 | T29: 3100000106816
A30: 20 | T30: 3100000109616
A31: 21 | T31: 3100000114416
A32: 22 | T32: 3100000115416
A33: 23
A34: 24
A35: 25
A36: 26
B38: PROMEDIO | C38: =AVERAGE(C11:C37) -> 5.818181818 | D38: PROMEDIO | E38: =AVERAGE(E11:E37) ->  | F38: PROMEDIO | G38: =AVERAGE(G11:G37) -> 5 | H38: PROMEDIO | I38: =AVERAGE(I11:I37) -> 7.5 | J38: PROMEDIO | K38: =AVERAGE(K11:K37) -> 3 | L38: PROMEDIO | M38: =AVERAGE(M11:M37) -> 3.4 | N38: PROMEDIO | O38: =AVERAGE(O11:O37) -> 6.5 | P38: PROMEDIO | Q38: =AVERAGE(Q11:Q37) -> 3 | R38: PROMEDIO | S38: =AVERAGE(S11:S37) -> 3.125 | T38: PROMEDIO | U38: =AVERAGE(U11:U37) -> 6 | V38: PROMEDIO | W38: =AVERAGE(W11:W37) -> 2 | X38: PROMEDIO | Y38: =AVERAGE(Y11:Y37) -> 

Sheet 18 DÍAS (1 UA)
C3: FOLIOS PENDIENTES A LA FECHA DE REPORTE
B5: TIEMPO DE ATENCIÓN A SOLICITUDES DE INFORMACIÓN, FOLIOS DEL 05 DE MAYO AL 20 DE JUNIO DE 2016
B6: ATENDIDAS POR "UNA UNIDAD ADMINISTRATIVA" (20 DÍAS HÁBILES)
B7: Secretaría Técnica | D7: Secretaría Ejecutiva | F7: Contraloría | H7: Dirección Jurídica y Desarrollo Normativo | J7: Dirección de Capacitación y Cultura de la Transparencia | L7: Dirección de Evaluación y Estudios | N7: Dirección de Datos Personales | P7: Dirección de Vinculación con la Sociedad | R7: Dirección de Tecnologías de Información | T7: Dirección de Administración y Finanzas | V7: Dirección de Comunicación Social | X7: Oficina de Información Pública
B8: Folio | C8: Días | D8: Folio | E8: Días | F8: Folio | G8: Días | H8: Folio | I8: Días | J8: Folio | K8: Días | L8: Folio | M8: Días | N8: Folio | O8: Días | P8: Folio | Q8: Días | R8: Folio | S8: Días | T8: Folio | U8: Días | V8: Folio | W8: Días | X8: Folio | Y8: Días
A9: 1 | T9: 3100000105416
A10: 2
A11: 3
A12: 4
A13: 5
A14: 6
A15: 7
A16: 8
A17: 9
A18: 10
A19: 11
A20: 12
B21: PROMEDIO | C21: =AVERAGE(C9:C20) ->  | D21: PROMEDIO | E21: =AVERAGE(E9:E20) ->  | F21: PROMEDIO | G21: =AVERAGE(G9:G20) ->  | H21: PROMEDIO | I21: =AVERAGE(I9:I20) ->  | J21: PROMEDIO | K21: =AVERAGE(K9:K20) ->  | L21: PROMEDIO | M21: =AVERAGE(M9:M20) ->  | N21: PROMEDIO | O21: =AVERAGE(O9:O20) ->  | P21: PROMEDIO | Q21: =AVERAGE(Q9:Q20) ->  | R21: PROMEDIO | S21: =AVERAGE(S9:S20) ->  | T21: PROMEDIO | U21: =AVERAGE(U9:U20) ->  | V21: PROMEDIO | W21: =AVERAGE(W9:W20) ->  | X21: PROMEDIO | Y21: =AVERAGE(Y9:Y20) -> 

Sheet 9 DÍAS (2 o más UA)
C1: FOLIOS PENDIENTES A LA FECHA DE REPORTE
B3: TIEMPO DE ATENCIÓN A SOLICITUDES DE INFORMACIÓN, FOLIOS DEL 05 DE MAYO AL 20 DE JUNIO DE 2016
B4: ATENDIDAS POR "DOS O MÁS UNIDADES ADMINISTRATIVAS" (10 DÍAS HÁBILES)
B5: Folio | C5: Secretaría Técnica | D5: Secretaría Ejecutiva | E5: Contraloría | F5: Dirección Jurídica y Desarrollo Normativo | G5: Dirección de Capacitación y Cultura de la Transparencia | H5: Dirección de Evaluación y Estudios | I5: Dirección de Datos Personales | J5: Dirección de Vinculación con la Sociedad | K5: Dirección de Tecnologías de Información | L5: Dirección de Administración y Finanzas | M5: Dirección de Comunicación Social | N5: Oficina de Información Pública
C6: Días | D6: Días | E6: Días | F6: Días | G6: Días | H6: Días | I6: Días | J6: Días | K6: Días | L6: Días | M6: Días | N6: Días
A7: 1 | B7: 3100000077616 | F7: 7 | I7: 7
A8: 2 | B8: 3100000077716 | F8: 7 | I8: 7
A9: 3 | B9: 3100000077816 | F9: 7 | I9: 7
A10: 4 | B10: 3100000077916 | F10: 7 | I10: 7
A11: 5 | B11: 3100000078016 | F11: 7 | I11: 7
A12: 6 | B12: 3100000078216 | F12: 7 | I12: 7
A13: 7 | B13: 3100000078316 | F13: 7 | I13: 7
A14: 8 | B14: 3100000078416 | F14: 7 | I14: 7
A15: 9 | B15: 3100000079316 | F15: 6 | I15: 6
A16: 10 | B16: 3100000079416 | F16: 6 | I16: 6
A17: 11 | B17: 3100000081116 | F17: 7 | K17: 4 | M17: 2
A18: 12 | B18: 3100000081216 | F18: 7 | K18: 4 | M18: 2
A19: 13 | B19: 3100000083616 | G19: 5 | J19: 4
A20: 14 | B20: 3100000102016 | F20: 9 | L20: 9
A21: 15 | B21: 3100000102816 | F21: 8 | N21: 1
A22: 16 | B22: 3100000102916 | D22: 9 | E22: 3 | F22: 9 | G22: 2 | H22: 2 | I22: 7 | J22: 4 | K22: 3 | L22: 8 | M22: 2
A23: 17 | B23: 3100000103816 | C23: 1 | F23: 7
A24: 18 | B24: 3100000104016 | F24: 9 | I24: 7
A25: 19 | B25: 3100000104916 | L25: 9 | N25: 3
A26: 20 | B26: 3100000106116 | H26: 4 | K26: 3 | N26: 2
A27: 21 | B27: 3100000107716
A28: 22 | B28: 3100000108616
A29: 23 | B29: 3100000108916
A30: 24 | B30: 3100000109216
A31: 25 | B31: 3100000109716
A32: 26 | B32: 3100000109916
A33: 27 | B33: 3100000110216
A34: 28 | B34: 3100000110316
A35: 29 | B35: 3100000110416
A36: 30 | B36: 3100000110716
A37: 31 | B37: 3100000110816
A38: 32 | B38: 3100000110916
A39: 33 | B39: 3100000111016
A40: 34 | B40: 3100000111216
A41: 35 | B41: 3100000111316
A42: 36 | B42: 3100000111416
A43: 37 | B43: 3100000113616
A44: 38 | B44: 3100000114016 | N44: 0
A45: 39 | B45: 3100000114116 | N45: 0
A46: 40 | B46: 3100000114316
A47: 41 | B47: 3100000114516
A48: 42 | B48: 3100000115516
A49: 43 | B49: 3100000115716
A50: 44
A51: 45
A52: 46
B54: PROMEDIO | C54: =AVERAGE(C7:C53) -> 1 | D54: 9 | E54: 3 | F54: 7.294117647 | G54: 3.5 | H54: 3 | I54: 6.833333333 | J54: 4 | K54: 3.5 | L54: 8.666666667 | M54: 2 | N54: 1.2

Sheet 18 DÍAS (2 o más UA)
C1: FOLIOS PENDIENTES A LA FECHA DE REPORTE | G1: No ampliaron plazo, no se cuenta para el promedio
B3: TIEMPO DE ATENCIÓN A SOLICITUDES DE INFORMACIÓN, FOLIOS DEL 05 DE MAYO AL 20 DE JUNIO DE 2016
B4: ATENDIDAS POR "DOS O MÁS UNIDADES ADMINISTRATIVAS" (20 DÍAS HÁBILES)
B5: Folio | C5: Secretaría Técnica | D5: Secretaría Ejecutiva | E5: Contraloría | F5: Dirección Jurídica y Desarrollo Normativo | G5: Dirección de Capacitación y Cultura de la Transparencia | H5: Dirección de Evaluación y Estudios | I5: Dirección de Datos Personales | J5: Dirección de Vinculación con la Sociedad | K5: Dirección de Tecnologías de Información | L5: Dirección de Administración y Finanzas | M5: Dirección de Comunicación Social | N5: Oficina de Información Pública
C6: Días | D6: Días | E6: Días | F6: Días | G6: Días | H6: Días | I6: Días | J6: Días | K6: Días | L6: Días | M6: Días | N6: Días
A7: 1 | B7: 3100000103916
A8: 2
A9: 3
A10: 4
A11: 5
A12: 6
A13: 7
A14: 8
A15: 9
A16: 10
A17: 12
A18: 13
A19: 14
A20: 15
A21: 16
A22: 17
A23: 18
A24: 19
A25: 20
A26: 21
A27: 22
A28: 23
A29: 24
A30: 25
A31: 26
A32: 27
A33: 28
B34: PROMEDIO | C34: =AVERAGEIF(C7:C33,">10") -> 

Sheet Solicitudes Acceso restringido
C1: FOLIOS PENDIENTES A LA FECHA DE REPORTE
C2: UNIDAD ADMINISTRATIVA QUE CLASIFICÓ INFORMACIÓN
C3: UNIDAD ADMINISTRATIVA QUE NO CLASIFICÓ INFORMACIÓN. NO SE TOMA EN CUENTA PARA EL PROMEDIO
B5: TIEMPO DE ATENCIÓN A SOLICITUDES DE INFORMACIÓN, FOLIOS DEL 05 DE MAYO AL 20 DE JUNIO DE 2016
B6: ACCESO RESTRINGIDO CONTENIDA EN LA RESPUESTA DE UNA O MÁS UNIDADES ADMINISTRATIVAS.
B7: Folio | C7: Secretaría Técnica | D7: Secretaría Ejecutiva | E7: Contraloría | F7: Dirección Jurídica y Desarrollo Normativo | G7: Dirección de Capacitación y Cultura de la Transparencia | H7: Dirección de Evaluación y Estudios | I7: Dirección de Datos Personales | J7: Dirección de Vinculación con la Sociedad | K7: Dirección de Tecnologías de Información | L7: Dirección de Administración y Finanzas | M7: Dirección de Comunicación Social | N7: Oficina de Información Pública | O7: OBSERVACIONES | P7: MODALIDAD | Q7: NO. ACUERDO / SUPUESTO LEGAL
C8: Días | D8: Días | E8: Días | F8: Días | G8: Días | H8: Días | I8: Días | J8: Días | K8: Días | L8: Días | M8: Días | N8: Días
A9: 1 | B9: 3100000091116 | F9: 9 | O9: SE REUNIÓ CT | P9: Confidencial | Q9: 001/SE/CT-01-06/2016
A10: 2 | B10: 3100000091816 | I10: 8 | L10: 18 | O10: SE REUNIÓ CT | P10: Confidencial | Q10: 004/SO/CT-14-06/2016
A11: 3 | B11: 3100000097516 | K11: 7 | O11: SE REUNIÓ CT | P11: Confidencial | Q11: 003/SO/CT-02-06/2016
A12: 4 | B12: 310000097616 | L12: 8 | O12: SE REUNIÓ CT | P12: Confidencial | Q12: 002/SO/CT-02-06/2016:
A13: 5 | B13: 310000097716 | L13: 8 | O13: SE REUNIÓ CT | P13: Confidencial | Q13: 002/SO/CT-02-06/2016:
A14: 6 | B14: 310000097816 | L14: 8 | O14: SE REUNIÓ CT | P14: Confidencial | Q14: 002/SO/CT-02-06/2016:
A15: 7 | B15: 3100000102516 | G15: 2 | O15: SE REUNIÓ CT
A16: 8 | B16: 3100000104616 | O16: SE REUNIÓ CT
A17: 9
A18: 10
B19: PROMEDIO | C19: =SumbyColor($B$2,C9:C18)/CountCcolor($B$2,C9:C18) ->  | D19: =SumbyColor($B$2,D9:D18)/CountCcolor($B$2,D9:D18) ->  | E19: =SumbyColor($B$2,E9:E18)/CountCcolor($B$2,E9:E18) ->  | F19: =SumbyColor($B$2,F9:F18)/CountCcolor($B$2,F9:F18) -> 9 | G19: =SumbyColor($B$2,G9:G18)/CountCcolor($B$2,G9:G18) ->  | H19: =SumbyColor($B$2,H9:H18)/CountCcolor($B$2,H9:H18) ->  | I19: =SumbyColor($B$2,I9:I18)/CountCcolor($B$2,I9:I18) ->  | J19: =SumbyColor($B$2,J9:J18)/CountCcolor($B$2,J9:J18) ->  | K19: =SumbyColor($B$2,K9:K18)/CountCcolor($B$2,K9:K18) -> 7 | L19: =SumbyColor($B$2,L9:L18)/CountCcolor($B$2,L9:L18) -> 10.5 | M19: =SumbyColor($B$2,M9:M18)/CountCcolor($B$2,M9:M18) ->  | N19: =SumbyColor($B$2,N9:N18)/CountCcolor($B$2,N9:N18) -> 
Q22: CRITERIO PLENO
Q23: SE REUNIÓ CT

Sheet 3 DÍAS (UT)
C1: FOLIOS PENDIENTES A LA FECHA DE REPORTE
B3: TIEMPO DE ATENCIÓN A SOLICITUDES DE INFORMACIÓN, FOLIOS DEL 05 DE MAYO AL 20 DE JUNIO DE 2016
D5: Unidad de Transparencia
B6: Orientación | D6: Folio | E6: Días
A7: 1 | B7: Sría Finanzas, CG, OM, JG | D7: 3100000075616 | E7: 0
A8: =SUM(A7+1) -> 2 | B8: Sría Finanzas, CG, OM, JG | D8: 3100000075716 | E8: 0
A9: =SUM(A8+1) -> 3 | B9: INAI | D9: 3100000076316 | E9: 1
A10: 4 | B10: INAI | D10: 3100000076416 | E10: 1
A11: 5 | B11: INAI | D11: 3100000076516 | E11: 1
A12: 6 | B12: INAI | D12: 3100000076616 | E12: 1
A13: 7 | B13: INAI | D13: 3100000076716 | E13: 1
A14: 8 | B14: INAI | D14: 3100000076816 | E14: 1
A15: 9 | B15: INAI | D15: 3100000076916 | E15: 1
A16: 10 | B16: INVI | D16: 3100000077116 | E16: 2
A17: 11 | B17: PGJDF | D17: 3100000077216 | E17: 1
A18: 12 | B18: SHCP | D18: 3100000077316 | E18: 1
A19: 13 | B19: SEMOVI, DEL. BJ | D19: 3100000078116 | E19: 2
A20: 14 | B20: SEDECO, 16 DELEGS | D20: 3100000078816 | E20: 0
A21: 15 | B21: SEDECO, 16 DELEGS | D21: 3100000078916 | E21: 0
A22: 16 | B22: SEDECO, 16 DELEGS | D22: 3100000079016 | E22: 1
A23: 17 | B23: SEDECO, 16 DELEGS | D23: 3100000079116 | E23: 0
A24: 18 | B24: SCT, GACDMX | D24: 3100000079816 | E24: 1
A25: 19 | B25: SCT, GACDMX | D25: 3100000079916 | E25: 1
A26: 20 | B26: SCT, GACDMX | D26: 3100000080016 | E26: 1
A27: 21 | B27: SCT, GACDMX | D27: 3100000080116 | E27: 1
A28: 22 | B28: INAI | D28: 3100000080816 | E28: 1
A29: 23 | B29: DEL. TLALPAN, SEDUVI | D29: 3100000081316 | E29: 1
A30: 24 | B30: TRIBUNALES | D30: 3100000081416 | E30: 1
A31: 25 | B31: TRIBUNALES | D31: 3100000081516 | E31: 1
A32: 26 | B32: TRIBUNALES | D32: 3100000081616 | E32: 1
A33: 27 | B33: CNBV | D33: 3100000081816 | E33: 0
A34: 28 | B34: CNBV | D34: 3100000081916 | E34: 0
A35: 29 | B35: CNBV | D35: 3100000082016 | E35: 0
A36: 30 | B36: CNBV | D36: 3100000082116 | E36: 0
A37: 31 | B37: CNBV | D37: 3100000082216 | E37: 0
A38: 32 | B38: CNBV | D38: 3100000082316 | E38: 0
A39: 33 | B39: CNBV | D39: 3100000082416 | E39: 0
A40: 34 | B40: SEDUVI, PAOT, INVEA, DEL. AO | D40: 3100000083416 | E40: 0
A41: 35 | B41: PEMEX | D41: 3100000083716 | E41: 0
A42: 36 | B42: SRÍA SALUD-DF | D42: 3100000083816 | E42: 1
A43: 37 | B43: SRÍA SALUD-DF | D43: 3100000083916 | E43: 1
A44: 38 | B44: PEMEX EXPLORACIÓN | D44: 3100000084016 | E44: 0
A45: 39 | B45: INAI | D45: 3100000084716 | E45: 1
A46: 40 | B46: PGJDF | D46: 3100000086016 | E46: 0
A47: 41 | B47: PGJDF | D47: 3100000086116 | E47: 0
A48: 42 | B48: SHCP, ISSSTE | D48: 3100000086216 | E48: 0
A49: 43 | B49: INC | D49: 3100000086316 | E49: 1
A50: 44 | B50: INC | D50: 3100000086416 | E50: 1
A51: 45 | B51: SF | D51: 3100000086516 | E51: 1
A52: 46 | B52: SEDUVI | D52: 3100000086616 | E52: 0
A53: 47 | B53: SEDUVI | D53: 3100000086716 | E53: 0
A54: 48 | B54: SEDUVI | D54: 3100000086816 | E54: 0
A55: 49 | B55: SEDUVI | D55: 3100000086916 | E55: 0
A56: 50 | B56: ISSSTE | D56: 3100000087016 | E56: 0
A57: 51 | B57: SEDUVI | D57: 3100000087116 | E57: 0
A58: 52 | B58: ISSSTE | D58: 3100000087216 | E58: 0
A59: 53 | B59: INAI | D59: 3100000087816 | E59: 0
A60: 54 | B60: INAI | D60: 3100000088016 | E60: 1
A61: 55 | B61: INAI | D61: 3100000088116 | E61: 1
A62: 56 | B62: INAI | D62: 3100000088216 | E62: 1
A63: 57 | B63: INAI | D63: 3100000088316 | E63: 0
A64: 58 | B64: INAI | D64: 3100000088416 | E64: 0
A65: 59 | B65: DEL. GAM | D65: 3100000088516 | E65: 1
A66: 60 | B66: INAI | D66: 3100000088616 | E66: 0
A67: 61 | B67: INAI | D67: 3100000090616 | E67: 0
A68: 62 | B68: INAI | D68: 3100000090716 | E68: 0
A69: 63 | B69: INAI | D69: 3100000090816 | E69: 0
A70: 64 | B70: PGR, PGJDF | D70: 3100000091316 | E70: 1
A71: 65 | B71: PGR, PGJDF | D71: 3100000091416 | E71: 1
A72: 66 | B72: PGR, PGJDF | D72: 3100000091616 | E72: 0
A73: =SUM(A72+1) -> 67 | B73: CONSEJERÍA JURÍDICA | D73: 3100000092016 | E73: 1
A74: 68 | B74: CONSEJERÍA JURÍDICA | D74: 3100000092116 | E74: 1
A75: 69 | B75: SSPDF, TSJDF, CJDF, PGJDF, SECGOB | D75: 3100000092216 | E75: 0
A76: 70 | B76: INC | D76: 3100000092316 | E76: 0
A77: 71 | B77: INC | D77: 3100000092416 | E77: 0
A78: 72 | B78: CONSEJERÍA JURÍDICA | D78: 3100000092616 | E78: 1
A79: 73 | B79: CONSEJERÍA JURÍDICA | D79: 3100000092716 | E79: 1
A80: 74 | B80: SECTUR | D80: 3100000092916 | E80: 1
A81: 75 | B81: CONSEJERÍA JURÍDICA | D81: 3100000093016 | E81: 1
A82: 76 | B82: CONSEJERÍA JURÍDICA | D82: 3100000093116 | E82: 1
A83: 77 | B83: CONSEJERÍA JURÍDICA | D83: 3100000093216 | E83: 1
A84: 78 | B84: CONSEJERÍA JURÍDICA | D84: 3100000093316 | E84: 1
A85: 79 | B85: CONSEJERÍA JURÍDICA | D85: 3100000093416 | E85: 1
A86: 80 | B86: CONSEJERÍA JURÍDICA | D86: 3100000093516 | E86: 1
A87: 81 | B87: CONSEJERÍA JURÍDICA | D87: 3100000093616 | E87: 1
A88: 82 | B88: CONSEJERÍA JURÍDICA | D88: 3100000093716 | E88: 1
A89: 83 | B89: CONSEJERÍA JURÍDICA | D89: 3100000093816 | E89: 0
A90: 84 | B90: CONSEJERÍA JURÍDICA | D90: 3100000093916 | E90: 0
A91: 85 | B91: H. CÁMARA DE DIPUTADOS | D91: 3100000094416 | E91: 1
A92: 86 | B92: INAI | D92: 3100000094616 | E92: 2
A93: 87 | B93: UNAM, INBA | D93: 3100000094716 | E93: 2
A94: 88 | B94: PRESIDENCIA REP., JUDICATURA | D94: 3100000094816 | E94: 2
A95: 89 | B95: PRESIDENCIA REP., JUDICATURA | D95: 3100000094916 | E95: 2
A96: 90 | B96: INE | D96: 3100000095016 | E96: 0
A97: 91 | B97: INE | D97: 3100000095116 | E97: 0
A98: 92 | B98: INE | D98: 3100000095216 | E98: 0
A99: 93 | B99: INE | D99: 3100000095416 | E99: 0
A100: 94 | B100: SF, SEDUVI, DEL. IZTAP, REG. PUB. | D100: 3100000095516 | E100: 2
A101: 95 | B101: SF, SEDUVI, DEL. IZTAP, REG. PUB. | D101: 3100000095616 | E101: 2
A102: 96 | B102: SF, SEDUVI, DEL. IZTAP, REG. PUB. | D102: 3100000095716 | E102: 2
A103: 97 | B103: SF, SEDUVI, DEL. IZTAP, REG. PUB. | D103: 3100000095816 | E103: 2
A104: 98 | B104: IMSS | D104: 3100000096016 | E104: 1
A105: 99 | B105: IMSS | D105: 3100000096116 | E105: 1
A106: 100 | B106: INE | D106: 3100000096216 | E106: 1
A107: 101 | B107: CONSAR | D107: 3100000096316 | E107: 1
A108: 102 | B108: ASCDMX | D108: 3100000096416 | E108: 1
A109: 103 | B109: INAI | D109: 3100000096516 | E109: 1
A110: 104 | B110: INAI | D110: 3100000096616 | E110: 1
A111: 105 | B111: INAI | D111: 3100000096716 | E111: 1
A112: 106 | B112: INAI | D112: 3100000096816 | E112: 1
A113: 107 | B113: INAI | D113: 3100000096916 | E113: 1
A114: 108 | B114: INAI | D114: 3100000097016 | E114: 1
A115: 109 | B115: PROSOC, TSJDF, DIF-DF, DIF, | D115: 3100000097116 | E115: 1
A116: 110 | B116: SSPDF, TSJDF, CJDF, PGJDF, SECGOB | D116: 3100000097416 | E116: 0
A117: 111 | B117: IMSS | D117: 3100000097916 | E117: 0
A118: 112 | B118: TODOS LOS PARTIDOS POLÍTICOS CDMX | D118: 3100000098016 | E118: 0
A119: 113 | B119: SCJN | D119: 3100000098216 | E119: 0
A120: 114 | B120: OROCURADURÍA Q. ROO | D120: 3100000098616 | E120: 0
A121: 115 | B121: CONSAR | D121: 3100000098816 | E121: 0
A122: 116 | B122: PGJDF, CONTRALORÍA GRAL. | D122: 3100000098916 | E122: 0
A123: 117 | B123: IMSS | D123: 3100000099016 | E123: 0
A124: 118 | B124: PGJDF, CONTRALORÍA GRAL. | D124: 3100000099116 | E124: 0
A125: 119 | B125: PGJDF, CONTRALORÍA GRAL. | D125: 3100000099216 | E125: 0
A126: 120 | B126: PGJDF, CONTRALORÍA GRAL. | D126: 3100000099316 | E126: 0
A127: 121 | B127: PGJDF, CONTRALORÍA GRAL. | D127: 3100000099416 | E127: 0
A128: 122 | B128: PGJDF, CONTRALORÍA GRAL. | D128: 3100000099516 | E128: 0
A129: 123 | B129: PGJDF, CONTRALORÍA GRAL. | D129: 3100000099716 | E129: 0
A130: 124 | B130: PGJDF, CONTRALORÍA GRAL. | D130: 3100000099816 | E130: 0
A131: 125 | B131: SEMOVI, DEL. CUAJIMALPA | D131: 3100000099916 | E131: 0
A132: 126 | B132: PGJDF, CONTRALORÍA GRAL. | D132: 3100000100016 | E132: 1
A133: 127 | B133: PGJDF, CONTRALORÍA GRAL. | D133: 3100000100116 | E133: 1
A134: 128 | B134: PGJDF, CONTRALORÍA GRAL. | D134: 3100000100216 | E134: 0
A135: 129 | B135: PGJDF, CONTRALORÍA GRAL. | D135: 3100000100516 | E135: 0
A136: 130 | B136: PGJDF, CONTRALORÍA GRAL. | D136: 3100000100616 | E136: 0
A137: =SUM(A136+1) -> 131 | B137: PGJDF, CONTRALORÍA GRAL. | D137: 3100000101016 | E137: 0
A138: 132 | B138: PGJDF, CONTRALORÍA GRAL. | D138: 3100000101116 | E138: 0
A139: 133 | B139: PBI, CONTRALORÍA GRAL. | D139: 3100000101216 | E139: 0
A140: 134 | B140: PGJDF, CONTRALORÍA GRAL. | D140: 3100000101416 | E140: 0
A141: 135 | B141: PGJDF, CONTRALORÍA GRAL. | D141: 3100000101516 | E141: 0
A142: 136 | B142: PGJDF, CONTRALORÍA GRAL. | D142: 3100000101616 | E142: 0
A143: 137 | B143: PGJDF, CONTRALORÍA GRAL. | D143: 3100000101716 | E143: 0
A144: 138 | B144: PGJDF, CONTRALORÍA GRAL. | D144: 3100000101816 | E144: 0
A145: 139 | B145: PGJDF, CONTRALORÍA GRAL. | D145: 3100000101916 | E145: 0
A146: 140 | B146: PGJDF, CONTRALORÍA GRAL. | D146: 3100000102216 | E146: 0
A147: 141 | B147: SRE | D147: 3100000102716 | E147: 1
A148: 142 | B148: SSPDF | D148: 3100000103316 | E148: 2
A149: 143 | B149: PGJDF | D149: 3100000103416 | E149: 2
A150: 144 | B150: STC | D150: 3100000103716 | E150: 1
A151: 145 | B151: ISSSTE | D151: 3100000104216 | E151: 2
A152: 146 | B152: INM | D152: 3100000104316 | E152: 2
A153: 147 | B153: SEDECO, 16 DELEGS | D153: 3100000104416 | E153: 1
A154: 148 | B154: PGJDF, OFICIALÍA MAYOR | D154: 3100000104816 | E154: 1
A155: 149 | B155: SCT, STC, SRÍA OBRAS | D155: 3100000105216 | E155: 0
A156: 150 | B156: IMSS | D156: 3100000105516 | E156: 0
A157: 151 | B157: SCJN. CAMARA DIPS, SENADO | D157: 3100000105716 | E157: 1
A158: 152 | B158: INAI | D158: 3100000105816 | E158: 0
A159: 153 | B159: SEMARNAT, PROFEPA | D159: 3100000106216 | E159: 0
A160: 154 | B160: TSJDF, CJDF, CDHDF, SDIFDF, CJF | D160: 3100000107016 | E160: 0
A161: 155 | B161: ISSSTE | D161: 3100000107116 | E161: 0
A162: 156 | B162: ISSSTE | D162: 3100000107216 | E162: 0
A163: 157 | B163: TSJDF | D163: 3100000107316 | E163: 0
A164: 158 | B164: JGDF | D164: 3100000107416 | E164: 0
A165: 159 | B165: SSPDF | D165: 3100000107516 | E165: 0
A166: 160 | B166: ALDF | D166: 3100000107616 | E166: 3
A167: 161 | B167: ISSSTE | D167: 3100000107816 | E167: 0
A168: 162 | B168: SEDESO | D168: 3100000108416 | E168: 0
A169: 163 | B169: OM, SERVIMET | D169: 3100000108516 | E169: 0
A170: 164 | B170: SMA | D170: 3100000108816 | E170: 0
A171: 165 | B171: SSPDF | D171: 3100000109016 | E171: 0
A172: 166 | B172: SSPDF | D172: 3100000109116 | E172: 0
A173: 167 | B173: IPN | D173: 3100000112916 | E173: 1
A174: 168 | B174: IPN | D174: 3100000113016 | E174: 1
A175: 169 | B175: IPN | D175: 3100000113116 | E175: 1
A176: 170 | B176: IPN | D176: 3100000113216 | E176: 1
A177: 171 | B177: SEDESO, SDIF-DF | D177: 3100000114616
A178: 172 | B178: IMSS | D178: 3100000114816
A179: 173 | B179: CFE, INEGI | D179: 3100000115016
A180: 174 | B180: CFE, INEGI | D180: 3100000115116
A181: 175 | B181: IEDF | D181: 3100000115916
A182: 176 | B182: DEL. IZTAPALAPA | D182: 3100000116016
A183: 177 | B183: M1, SEMOVI, STC, MB, INDEPI, SDIF-DF, OM, ILIE, 16 DELEGS | D183: 3100000116116
A184: 178
A185: 179
A186: 180
A187: 181
A188: 182
A189: 183
A190: 184
A191: 185
A192: 186
A193: 187
A194: 188
A195: 189
A196: 190
A197: 191
A198: 192
A199: 193
A200: 194
A201: =SUM(A200+1) -> 195
A202: 196
... 8 more rows

Sheet 5 DÍAS (2 o más UA) (hidden)
B7: ATENCIÓN A SOLICITUDES DE INFORMACIÓN, INFODF A MARZO 2014
B8: ATENDIDAS POR "DOS O MÁS UNIDADES ADMINISTRATIVAS" (5 DÍAS HÁBILES)
B9: Folio | C9: Secretaría Técnica | D9: Secretaría Ejecutiva | E9: Contraloría | F9: Dirección Jurídica y Desarrollo Normativo | G9: Dirección de Capacitación y Cultura de la Transparencia | H9: Dirección de Evaluación y Estudios | I9: Dirección de Datos Personales | J9: Dirección de Vinculación con la Sociedad | K9: Dirección de Tecnologías de Información | L9: Dirección de Administración y Finanzas | M9: Dirección de Comunicación Social | N9: Oficina de Información Pública
C10: Días | D10: Días | E10: Días | F10: Días | G10: Días | H10: Días | I10: Días | J10: Días | K10: Días | L10: Días | M10: Días | N10: Días

Sheet 5 DÍAS (1 UA)
C1: FOLIOS PENDIENTES A LA FECHA DE REPORTE
B3: TIEMPO DE ATENCIÓN A SOLICITUDES DE INFORMACIÓN, FOLIOS DEL 05 DE MAYO AL 20 DE JUNIO DE 2016
B4: ATENDIDAS POR "UNA UNIDAD ADMINISTRATIVA" (5 DÍAS HÁBILES)
B5: Secretaría Técnica | D5: Secretaría Ejecutiva | F5: Contraloría | H5: Dirección Jurídica y Desarrollo Normativo | J5: Dirección de Capacitación y Cultura de la Transparencia | L5: Dirección de Evaluación y Estudios | N5: Dirección de Datos Personales | P5: Dirección de Vinculación con la Sociedad | R5: Dirección de Tecnologías de Información | T5: Dirección de Administración y Finanzas | V5: Dirección de Comunicación Social | X5: Oficina de Información Pública
B6: Folio | C6: Días | D6: Folio | E6: Días | F6: Folio | G6: Días | H6: Folio | I6: Días | J6: Folio | K6: Días | L6: Folio | M6: Días | N6: Folio | O6: Días | P6: Folio | Q6: Días | R6: Folio | S6: Días | T6: Folio | U6: Días | V6: Folio | W6: Días | X6: Folio | Y6: Días
A7: 1 | H7: 3100000081716 | I7: 4 | T7: 3100000092516 | U7: 3
A8: =SUM(A7+1) -> 2
A9: =SUM(A8+1) -> 3
A10: 4
A11: 5
A12: 6
A13: 7
A14: 8
A15: 9
A16: 10
B18: PROMEDIO | C18: =AVERAGE(C7:C17) ->  | D18: PROMEDIO | E18: =AVERAGE(E7:E17) ->  | F18: PROMEDIO | G18: =AVERAGE(G7:G17) ->  | H18: PROMEDIO | I18: =AVERAGE(I7:I17) -> 4 | J18: PROMEDIO | K18: =AVERAGE(K7:K17) ->  | L18: PROMEDIO | M18: =AVERAGE(M7:M17) ->  | N18: PROMEDIO | O18: =AVERAGE(O7:O17) ->  | P18: PROMEDIO | Q18: =AVERAGE(Q7:Q17) ->  | R18: PROMEDIO | S18: =AVERAGE(S7:S17) ->  | T18: PROMEDIO | U18: =AVERAGE(U7:U17) -> 3 | V18: PROMEDIO | W18: =AVERAGE(W7:W17) ->  | X18: PROMEDIO | Y18: =AVERAGE(Y7:Y17) -> 

Sheet 5 DIAS (2 o más UA)
C1: FOLIOS PENDIENTES A LA FECHA DE REPORTE
B3: TIEMPO DE ATENCIÓN A SOLICITUDES DE INFORMACIÓN, FOLIOS DEL 05 DE MAYO AL 20 DE JUNIO DE 2016
B4: SIP DE 5 DÍAS ATENDIDAS POR 2 o MÁS UA
B5: Folio | C5: Secretaría Técnica | D5: Secretaría Ejecutiva | E5: Contraloría | F5: Dirección Jurídica y Desarrollo Normativo | G5: Dirección de Capacitación y Cultura de la Transparencia | H5: Dirección de Evaluación y Estudios | I5: Dirección de Datos Personales | J5: Dirección de Vinculación con la Sociedad | K5: Dirección de Tecnologías de Información | L5: Dirección de Administración y Finanzas | M5: Dirección de Comunicación Social | N5: Oficina de Información Pública
C6: Días | D6: Días | E6: Días | F6: Días | G6: Días | H6: Días | I6: Días | J6: Días | K6: Días | L6: Días | M6: Días | N6: Días
A7: 1
A8: 2
A9: 3
A10: 4
A11: 5
A12: 6
A13: 7
A14: 8
A15: 9
A16: 10
B17: PROMEDIO | C17: =AVERAGE(C7:C16) -> 

Sheet RESUMEN POR UA (hidden)
A1: TIEMPO DE ATENCIÓN A SOLICITUDES DE INFORMACIÓN POR UNIDAD ADMINISTRATIVA, FOLIOS AL 15 DE JUNIO DE 2015
A2: Unidad Administrativa | B2: SIP de 10 días atendidas por una UA | D2: SIP de 20 días atendidas por una UA | F2: SIP de 10 días atendidas por dos o más UA | H2: SIP de 20 días atendidas por dos o más UA | J2: Solicitudes Acceso Restringido | L2: SIP de 5 días atendidas por 1 UA | N2: SIP de 5 días atendidas por 2 o más UA
B3: Folios | C3: Promedio días atención | D3: Folios | E3: Promedio días atención | F3: Folios | G3: Promedio días atención | H3: Folios | I3: Promedio días atención | J3: Folios | K3: Promedio días atención | L3: Folios | M3: Promedio días atención | N3: Folios | O3: Promedio días atención
A4: Secretaría Técnica | B4: =COUNT('9 DÍAS (1 UA)'!C11:C36) -> 11 | C4: ='9 DÍAS (1 UA)'!C38 -> 5.818181818 | D4: =COUNT('18 DÍAS (1 UA)'!C9:C20) -> 0 | F4: =COUNT('9 DÍAS (2 o más UA)'!C7:C52) -> 1 | G4: ='9 DÍAS (2 o más UA)'!#REF! ->  | H4: =COUNTIF('18 DÍAS (2 o más UA)'!C7:C8, ">10") -> 0 | I4: ='18 DÍAS (2 o más UA)'!C34 ->  | J4: =CountCcolor('Solicitudes Acceso restringido'!$B$2,'Solicitudes Acceso restringido'!C9:C18) -> 0 | L4: =COUNT('5 DÍAS (1 UA)'!C7:C16) -> 0 | M4: ='5 DÍAS (1 UA)'!C18 ->  | N4: =COUNT('5 DIAS (2 o más UA)'!C7:C16) -> 0 | O4: ='5 DIAS (2 o más UA)'!C17 -> 
A5: Secretaría Ejecutiva | B5: =COUNT('9 DÍAS (1 UA)'!E11:E36) -> 0 | C5: ='9 DÍAS (1 UA)'!E38 ->  | D5: =COUNT('18 DÍAS (1 UA)'!E9:E20) -> 0 | F5: =COUNT('9 DÍAS (2 o más UA)'!D7:D52) -> 1 | G5: ='9 DÍAS (2 o más UA)'!#REF! ->  | H5: =COUNTIF('18 DÍAS (2 o más UA)'!D7:D8, ">10") -> 0 | I5: ='18 DÍAS (2 o más UA)'!D34 ->  | J5: =CountCcolor('Solicitudes Acceso restringido'!$B$2,'Solicitudes Acceso restringido'!D9:D18) -> 0 | L5: =COUNT('5 DÍAS (1 UA)'!E7:E16) -> 0 | M5: ='5 DÍAS (1 UA)'!E18 ->  | N5: =COUNT('5 DIAS (2 o más UA)'!D7:D16) -> 0 | O5: ='5 DIAS (2 o más UA)'!D17 -> 
A6: Contraloría | B6: =COUNT('9 DÍAS (1 UA)'!G11:G36) -> 1 | C6: ='9 DÍAS (1 UA)'!G38 -> 5 | D6: =COUNT('18 DÍAS (1 UA)'!G9:G20) -> 0 | F6: =COUNT('9 DÍAS (2 o más UA)'!E7:E52) -> 1 | G6: ='9 DÍAS (2 o más UA)'!#REF! ->  | H6: =COUNTIF('18 DÍAS (2 o más UA)'!E7:E8, ">10") -> 0 | J6: =CountCcolor('Solicitudes Acceso restringido'!$B$2,'Solicitudes Acceso restringido'!E9:E18) -> 0 | K6: ='Solicitudes Acceso restringido'!E19 ->  | L6: =COUNT('5 DÍAS (1 UA)'!G7:G16) -> 0 | M6: ='5 DÍAS (1 UA)'!G18 ->  | N6: =COUNT('5 DIAS (2 o más UA)'!E7:E16) -> 0 | O6: ='5 DIAS (2 o más UA)'!E17 -> 
A7: DJDN | B7: =COUNT('9 DÍAS (1 UA)'!I11:I36) -> 10 | C7: ='9 DÍAS (1 UA)'!I38 -> 7.5 | D7: =COUNT('18 DÍAS (1 UA)'!I9:I20) -> 0 | E7: ='18 DÍAS (1 UA)'!I21 ->  | F7: =COUNT('9 DÍAS (2 o más UA)'!F7:F52) -> 17 | G7: ='9 DÍAS (2 o más UA)'!#REF! ->  | H7: =COUNTIF('18 DÍAS (2 o más UA)'!F7:F8, ">10") -> 0 | I7: ='18 DÍAS (2 o más UA)'!F34 ->  | J7: =CountCcolor('Solicitudes Acceso restringido'!$B$2,'Solicitudes Acceso restringido'!F9:F18) -> 1 | K7: ='Solicitudes Acceso restringido'!F19 -> 9 | L7: =COUNT('5 DÍAS (1 UA)'!I7:I16) -> 1 | M7: ='5 DÍAS (1 UA)'!I18 -> 4 | N7: =COUNT('5 DIAS (2 o más UA)'!F7:F16) -> 0 | O7: ='5 DIAS (2 o más UA)'!F17 -> 
A8: DCCT | B8: =COUNT('9 DÍAS (1 UA)'!K11:K36) -> 1 | C8: ='9 DÍAS (1 UA)'!K38 -> 3 | D8: =COUNT('18 DÍAS (1 UA)'!K9:K20) -> 0 | F8: =COUNT('9 DÍAS (2 o más UA)'!G7:G52) -> 2 | G8: ='9 DÍAS (2 o más UA)'!#REF! ->  | H8: =COUNTIF('18 DÍAS (2 o más UA)'!G7:G8, ">10") -> 0 | J8: =CountCcolor('Solicitudes Acceso restringido'!$B$2,'Solicitudes Acceso restringido'!G9:G18) -> 0 | K8: ='Solicitudes Acceso restringido'!G19 ->  | L8: =COUNT('5 DÍAS (1 UA)'!K7:K16) -> 0 | M8: ='5 DÍAS (1 UA)'!K18 ->  | N8: =COUNT('5 DIAS (2 o más UA)'!G7:G16) -> 0 | O8: ='5 DIAS (2 o más UA)'!G17 -> 
A9: DEyE | B9: =COUNT('9 DÍAS (1 UA)'!M11:M36) -> 5 | C9: ='9 DÍAS (1 UA)'!M38 -> 3.4 | D9: =COUNT('18 DÍAS (1 UA)'!M9:M20) -> 0 | E9: ='18 DÍAS (1 UA)'!M21 ->  | F9: =COUNT('9 DÍAS (2 o más UA)'!H7:H52) -> 2 | G9: ='9 DÍAS (2 o más UA)'!#REF! ->  | H9: =COUNTIF('18 DÍAS (2 o más UA)'!H7:H8, ">10") -> 0 | I9: ='18 DÍAS (2 o más UA)'!H34 ->  | J9: =CountCcolor('Solicitudes Acceso restringido'!$B$2,'Solicitudes Acceso restringido'!H9:H18) -> 0 | L9: =COUNT('5 DÍAS (1 UA)'!M7:M16) -> 0 | M9: ='5 DÍAS (1 UA)'!M18 ->  | N9: =COUNT('5 DIAS (2 o más UA)'!H7:H16) -> 0 | O9: ='5 DIAS (2 o más UA)'!H17 -> 
A10: DDP | B10: =COUNT('9 DÍAS (1 UA)'!O11:O36) -> 10 | C10: ='9 DÍAS (1 UA)'!O38 -> 6.5 | D10: =COUNT('18 DÍAS (1 UA)'!O9:O20) -> 0 | F10: =COUNT('9 DÍAS (2 o más UA)'!I7:I52) -> 12 | G10: ='9 DÍAS (2 o más UA)'!#REF! ->  | H10: =COUNTIF('18 DÍAS (2 o más UA)'!I7:I8, ">10") -> 0 | J10: =CountCcolor('Solicitudes Acceso restringido'!$B$2,'Solicitudes Acceso restringido'!I9:I18) -> 0 | L10: =COUNT('5 DÍAS (1 UA)'!O7:O16) -> 0 | N10: =COUNT('5 DIAS (2 o más UA)'!I7:I16) -> 0 | O10: ='5 DIAS (2 o más UA)'!I17 -> 
A11: DVS | B11: =COUNT('9 DÍAS (1 UA)'!Q11:Q36) -> 1 | C11: ='9 DÍAS (1 UA)'!Q38 -> 3 | D11: =COUNT('18 DÍAS (1 UA)'!Q9:Q20) -> 0 | F11: =COUNT('9 DÍAS (2 o más UA)'!J7:J52) -> 2 | G11: ='9 DÍAS (2 o más UA)'!#REF! ->  | H11: =COUNTIF('18 DÍAS (2 o más UA)'!J7:J8, ">10") -> 0 | J11: =CountCcolor('Solicitudes Acceso restringido'!$B$2,'Solicitudes Acceso restringido'!J9:J18) -> 0 | K11: ='Solicitudes Acceso restringido'!J19 ->  | L11: =COUNT('5 DÍAS (1 UA)'!Q7:Q16) -> 0 | M11: ='5 DÍAS (1 UA)'!Q18 ->  | N11: =COUNT('5 DIAS (2 o más UA)'!J7:J16) -> 0 | O11: ='5 DIAS (2 o más UA)'!J17 -> 
A12: DTI | B12: =COUNT('9 DÍAS (1 UA)'!S11:S36) -> 8 | C12: ='9 DÍAS (1 UA)'!S38 -> 3.125 | D12: =COUNT('18 DÍAS (1 UA)'!S9:S20) -> 0 | E12: ='18 DÍAS (1 UA)'!S21 ->  | F12: =COUNT('9 DÍAS (2 o más UA)'!K7:K52) -> 4 | G12: ='9 DÍAS (2 o más UA)'!#REF! ->  | H12: =COUNTIF('18 DÍAS (2 o más UA)'!K7:K8, ">10") -> 0 | I12: ='18 DÍAS (2 o más UA)'!K34 ->  | J12: =CountCcolor('Solicitudes Acceso restringido'!$B$2,'Solicitudes Acceso restringido'!K9:K18) -> 1 | L12: =COUNT('5 DÍAS (1 UA)'!S7:S16) -> 0 | N12: =COUNT('5 DIAS (2 o más UA)'!K7:K16) -> 0
A13: DAF | B13: =COUNT('9 DÍAS (1 UA)'!U11:U36) -> 14 | C13: ='9 DÍAS (1 UA)'!U38 -> 6 | D13: =COUNT('18 DÍAS (1 UA)'!U9:U20) -> 0 | F13: =COUNT('9 DÍAS (2 o más UA)'!L7:L52) -> 3 | G13: ='9 DÍAS (2 o más UA)'!#REF! ->  | H13: =COUNTIF('18 DÍAS (2 o más UA)'!L7:L8, ">10") -> 0 | I13: ='18 DÍAS (2 o más UA)'!L34 ->  | J13: =CountCcolor('Solicitudes Acceso restringido'!$B$2,'Solicitudes Acceso restringido'!L9:L18) -> 4 | K13: ='Solicitudes Acceso restringido'!L19 -> 10.5 | L13: =COUNT('5 DÍAS (1 UA)'!U7:U16) -> 1 | M13: ='5 DÍAS (1 UA)'!U18 -> 3 | N13: =COUNT('5 DIAS (2 o más UA)'!L7:L16) -> 0 | O13: ='5 DIAS (2 o más UA)'!L17 -> 
A14: DCS | B14: =COUNT('9 DÍAS (1 UA)'!W11:W36) -> 1 | C14: ='9 DÍAS (1 UA)'!W38 -> 2 | D14: =COUNT('18 DÍAS (1 UA)'!W9:W20) -> 0 | F14: =COUNT('9 DÍAS (2 o más UA)'!M7:M52) -> 3 | H14: =COUNTIF('18 DÍAS (2 o más UA)'!M7:M8, ">10") -> 0 | J14: =CountCcolor('Solicitudes Acceso restringido'!$B$2,'Solicitudes Acceso restringido'!M9:M18) -> 0 | L14: =COUNT('5 DÍAS (1 UA)'!W7:W16) -> 0 | N14: =COUNT('5 DIAS (2 o más UA)'!M7:M16) -> 0 | O14: ='5 DIAS (2 o más UA)'!M17 -> 
A15: OIP | B15: =COUNT('9 DÍAS (1 UA)'!Y11:Y36) -> 0 | C15: ='9 DÍAS (1 UA)'!Y38 ->  | D15: =COUNT('18 DÍAS (1 UA)'!Y9:Y20) -> 0 | F15: =COUNT('9 DÍAS (2 o más UA)'!N7:N52) -> 5 | G15: ='9 DÍAS (2 o más UA)'!#REF! ->  | H15: =COUNTIF('18 DÍAS (2 o más UA)'!N7:N8, ">10") -> 0 | J15: =CountCcolor('Solicitudes Acceso restringido'!$B$2,'Solicitudes Acceso restringido'!N9:N18) -> 0 | L15: =COUNT('5 DÍAS (1 UA)'!Y7:Y16) -> 0 | M15: ='5 DÍAS (1 UA)'!Y18 ->  | N15: =COUNT('5 DIAS (2 o más UA)'!N7:N16) -> 0 | O15: ='5 DIAS (2 o más UA)'!N17 -> 
B17: FOLIOS PENDIENTES A LA FECHA DE REPORTE

Sheet TABLAS
A1: Unidad Administrativa | B1: SIP de 9 días atendidas por una UA | D1: SIP de 18 días atendidas por una UA | F1: SIP de 9 días atendidas por dos o más UA | H1: SIP de 18 días atendidas por dos o más UA | J1: Solicitudes Acceso Restringido | L1: SIP de 5 días atendidas por 1 UA | N1: SIP de 5 días atendidas por 2 o más UA | P1: No. total solicitudes / UA | Q1: Promedio UA (9 DÍAS)
B2: Folios | C2: Promedio días atención | D2: Folios | E2: Promedio días atención | F2: Folios | G2: Promedio días atención | H2: Folios | I2: Promedio días atención | J2: Folios | K2: Promedio días atención | L2: Folios | M2: Promedio días atención | N2: Folios | O2: Promedio días atención
A3: Secretaría Técnica | B3: =COUNT('9 DÍAS (1 UA)'!C11:C36) -> 11 | C3: ='9 DÍAS (1 UA)'!C38 -> 5.818181818 | D3: =COUNT('18 DÍAS (1 UA)'!C9:C20) -> 0 | E3: ='18 DÍAS (1 UA)'!C21 ->  | F3: =COUNT('9 DÍAS (2 o más UA)'!C7:C52) -> 1 | G3: ='9 DÍAS (2 o más UA)'!C54 -> 1 | H3: =COUNTIF('18 DÍAS (2 o más UA)'!C7:C8, ">10") -> 0 | I3: ='18 DÍAS (2 o más UA)'!C34 ->  | J3: =CountCcolor('Solicitudes Acceso restringido'!$B$2,'Solicitudes Acceso restringido'!C9:C18) -> 0 | K3: ='Solicitudes Acceso restringido'!C19 ->  | L3: =COUNT('5 DÍAS (1 UA)'!C7:C16) -> 0 | M3: ='5 DÍAS (1 UA)'!C18 ->  | N3: =COUNT('5 DIAS (2 o más UA)'!C7:C16) -> 0 | O3: ='5 DIAS (2 o más UA)'!C17 ->  | P3: =SUM(B3+D3+F3+H3+J3+L3+N3) -> 12 | Q3: =AVERAGE(C3,G3) -> 3.409090909 | R3: 7
A4: Secretaría Ejecutiva | B4: =COUNT('9 DÍAS (1 UA)'!E11:E36) -> 0 | C4: ='9 DÍAS (1 UA)'!E38 ->  | D4: =COUNT('18 DÍAS (1 UA)'!E9:E20) -> 0 | E4: ='18 DÍAS (1 UA)'!E21 ->  | F4: =COUNT('9 DÍAS (2 o más UA)'!D7:D52) -> 1 | G4: ='9 DÍAS (2 o más UA)'!D54 -> 9 | H4: =COUNTIF('18 DÍAS (2 o más UA)'!D7:D8, ">10") -> 0 | I4: ='18 DÍAS (2 o más UA)'!D34 ->  | J4: =CountCcolor('Solicitudes Acceso restringido'!$B$2,'Solicitudes Acceso restringido'!D9:D18) -> 0 | K4: ='Solicitudes Acceso restringido'!D19 ->  | L4: =COUNT('5 DÍAS (1 UA)'!E7:E16) -> 0 | M4: ='5 DÍAS (1 UA)'!E18 ->  | N4: =COUNT('5 DIAS (2 o más UA)'!D7:D16) -> 0 | O4: ='5 DIAS (2 o más UA)'!D17 ->  | P4: 1 | Q4: =AVERAGE(G4) -> 9
A5: Contraloría | B5: =COUNT('9 DÍAS (1 UA)'!G11:G36) -> 1 | C5: ='9 DÍAS (1 UA)'!G38 -> 5 | D5: =COUNT('18 DÍAS (1 UA)'!G9:G20) -> 0 | E5: ='18 DÍAS (1 UA)'!G21 ->  | F5: =COUNT('9 DÍAS (2 o más UA)'!E7:E52) -> 1 | G5: ='9 DÍAS (2 o más UA)'!E54 -> 3 | H5: =COUNTIF('18 DÍAS (2 o más UA)'!E7:E8, ">10") -> 0 | I5: ='18 DÍAS (2 o más UA)'!E34 ->  | J5: =CountCcolor('Solicitudes Acceso restringido'!$B$2,'Solicitudes Acceso restringido'!E9:E18) -> 0 | K5: ='Solicitudes Acceso restringido'!E19 ->  | L5: =COUNT('5 DÍAS (1 UA)'!G7:G16) -> 0 | M5: ='5 DÍAS (1 UA)'!G18 ->  | N5: =COUNT('5 DIAS (2 o más UA)'!E7:E16) -> 0 | O5: ='5 DIAS (2 o más UA)'!E17 ->  | P5: 2 | Q5: =AVERAGE(C5,G5) -> 4
A6: DJDN | B6: =COUNT('9 DÍAS (1 UA)'!I11:I36) -> 10 | C6: ='9 DÍAS (1 UA)'!I38 -> 7.5 | D6: =COUNT('18 DÍAS (1 UA)'!I9:I20) -> 0 | E6: ='18 DÍAS (1 UA)'!I21 ->  | F6: =COUNT('9 DÍAS (2 o más UA)'!F7:F52) -> 17 | G6: ='9 DÍAS (2 o más UA)'!F54 -> 7.294117647 | H6: =COUNTIF('18 DÍAS (2 o más UA)'!F7:F8, ">10") -> 0 | I6: ='18 DÍAS (2 o más UA)'!F34 ->  | J6: =CountCcolor('Solicitudes Acceso restringido'!$B$2,'Solicitudes Acceso restringido'!F9:F18) -> 1 | K6: ='Solicitudes Acceso restringido'!F19 -> 9 | L6: =COUNT('5 DÍAS (1 UA)'!I7:I16) -> 1 | M6: ='5 DÍAS (1 UA)'!I18 -> 4 | N6: =COUNT('5 DIAS (2 o más UA)'!F7:F16) -> 0 | O6: ='5 DIAS (2 o más UA)'!F17 ->  | P6: 29 | Q6: =AVERAGE(C6,G6,K6) -> 7.931372549 | R6: 9
A7: DCCT | B7: =COUNT('9 DÍAS (1 UA)'!K11:K36) -> 1 | C7: ='9 DÍAS (1 UA)'!K38 -> 3 | D7: =COUNT('18 DÍAS (1 UA)'!K9:K20) -> 0 | E7: ='18 DÍAS (1 UA)'!K21 ->  | F7: =COUNT('9 DÍAS (2 o más UA)'!G7:G52) -> 2 | G7: ='9 DÍAS (2 o más UA)'!G54 -> 3.5 | H7: =COUNTIF('18 DÍAS (2 o más UA)'!G7:G8, ">10") -> 0 | I7: ='18 DÍAS (2 o más UA)'!G34 ->  | J7: =CountCcolor('Solicitudes Acceso restringido'!$B$2,'Solicitudes Acceso restringido'!G9:G18) -> 0 | K7: ='Solicitudes Acceso restringido'!G19 ->  | L7: =COUNT('5 DÍAS (1 UA)'!K7:K16) -> 0 | M7: ='5 DÍAS (1 UA)'!K18 ->  | N7: =COUNT('5 DIAS (2 o más UA)'!G7:G16) -> 0 | O7: ='5 DIAS (2 o más UA)'!G17 ->  | P7: 3 | Q7: =AVERAGE(C7,G7) -> 3.25 | R7: 4
A8: DEyE | B8: =COUNT('9 DÍAS (1 UA)'!M11:M36) -> 5 | C8: ='9 DÍAS (1 UA)'!M38 -> 3.4 | D8: =COUNT('18 DÍAS (1 UA)'!M9:M20) -> 0 | E8: ='18 DÍAS (1 UA)'!M21 ->  | F8: =COUNT('9 DÍAS (2 o más UA)'!H7:H52) -> 2 | G8: ='9 DÍAS (2 o más UA)'!H54 -> 3 | H8: =COUNTIF('18 DÍAS (2 o más UA)'!H7:H8, ">10") -> 0 | I8: ='18 DÍAS (2 o más UA)'!H34 ->  | J8: =CountCcolor('Solicitudes Acceso restringido'!$B$2,'Solicitudes Acceso restringido'!H9:H18) -> 0 | K8: ='Solicitudes Acceso restringido'!H19 ->  | L8: =COUNT('5 DÍAS (1 UA)'!M7:M16) -> 0 | M8: ='5 DÍAS (1 UA)'!M18 ->  | N8: =COUNT('5 DIAS (2 o más UA)'!H7:H16) -> 0 | O8: ='5 DIAS (2 o más UA)'!H17 ->  | P8: 7 | Q8: 3.8 | R8: 3
A9: DDP | B9: =COUNT('9 DÍAS (1 UA)'!O11:O36) -> 10 | C9: ='9 DÍAS (1 UA)'!O38 -> 6.5 | D9: =COUNT('18 DÍAS (1 UA)'!O9:O20) -> 0 | E9: ='18 DÍAS (1 UA)'!O21 ->  | F9: =COUNT('9 DÍAS (2 o más UA)'!I7:I52) -> 12 | G9: ='9 DÍAS (2 o más UA)'!I54 -> 6.833333333 | H9: =COUNTIF('18 DÍAS (2 o más UA)'!I7:I8, ">10") -> 0 | I9: ='18 DÍAS (2 o más UA)'!I34 ->  | J9: =CountCcolor('Solicitudes Acceso restringido'!$B$2,'Solicitudes Acceso restringido'!I9:I18) -> 0 | K9: ='Solicitudes Acceso restringido'!I19 ->  | L9: =COUNT('5 DÍAS (1 UA)'!O7:O16) -> 0 | M9: ='5 DÍAS (1 UA)'!O18 ->  | N9: =COUNT('5 DIAS (2 o más UA)'!I7:I16) -> 0 | O9: ='5 DIAS (2 o más UA)'!I17 ->  | P9: 22 | Q9: =AVERAGE(C9,G9) -> 6.666666667 | R9: 8
A10: DVS | B10: =COUNT('9 DÍAS (1 UA)'!Q11:Q36) -> 1 | C10: ='9 DÍAS (1 UA)'!Q38 -> 3 | D10: =COUNT('18 DÍAS (1 UA)'!Q9:Q20) -> 0 | E10: ='18 DÍAS (1 UA)'!K21 ->  | F10: =COUNT('9 DÍAS (2 o más UA)'!J7:J52) -> 2 | G10: ='9 DÍAS (2 o más UA)'!J54 -> 4 | H10: =COUNTIF('18 DÍAS (2 o más UA)'!J7:J8, ">10") -> 0 | I10: ='18 DÍAS (2 o más UA)'!J34 ->  | J10: =CountCcolor('Solicitudes Acceso restringido'!$B$2,'Solicitudes Acceso restringido'!J9:J18) -> 0 | K10: ='Solicitudes Acceso restringido'!J19 ->  | L10: =COUNT('5 DÍAS (1 UA)'!Q7:Q16) -> 0 | M10: ='5 DÍAS (1 UA)'!Q18 ->  | N10: =COUNT('5 DIAS (2 o más UA)'!J7:J16) -> 0 | O10: ='5 DIAS (2 o más UA)'!J17 ->  | P10: 3 | Q10: =AVERAGE(C10,G10) -> 3.5 | R10: 2
A11: DTI | B11: =COUNT('9 DÍAS (1 UA)'!S11:S36) -> 8 | C11: ='9 DÍAS (1 UA)'!S38 -> 3.125 | D11: =COUNT('18 DÍAS (1 UA)'!S9:S20) -> 0 | E11: ='18 DÍAS (1 UA)'!S21 ->  | F11: =COUNT('9 DÍAS (2 o más UA)'!K7:K52) -> 4 | G11: ='9 DÍAS (2 o más UA)'!K54 -> 3.5 | H11: =COUNTIF('18 DÍAS (2 o más UA)'!K7:K8, ">10") -> 0 | I11: ='18 DÍAS (2 o más UA)'!K34 ->  | J11: =CountCcolor('Solicitudes Acceso restringido'!$B$2,'Solicitudes Acceso restringido'!K9:K18) -> 1 | K11: ='Solicitudes Acceso restringido'!K19 -> 7 | L11: =COUNT('5 DÍAS (1 UA)'!S7:S16) -> 0 | M11: ='5 DÍAS (1 UA)'!S18 ->  | N11: =COUNT('5 DIAS (2 o más UA)'!K7:K16) -> 0 | O11: ='5 DIAS (2 o más UA)'!K17 ->  | P11: 13 | Q11: =AVERAGE(C11,G11,K11) -> 4.541666667 | R11: 5
A12: DAF | B12: =COUNT('9 DÍAS (1 UA)'!U11:U36) -> 14 | C12: ='9 DÍAS (1 UA)'!U38 -> 6 | D12: =COUNT('18 DÍAS (1 UA)'!U9:U20) -> 0 | E12: ='18 DÍAS (1 UA)'!U21 ->  | F12: =COUNT('9 DÍAS (2 o más UA)'!L7:L52) -> 3 | G12: ='9 DÍAS (2 o más UA)'!L54 -> 8.666666667 | H12: =COUNTIF('18 DÍAS (2 o más UA)'!L7:L8, ">10") -> 0 | I12: ='18 DÍAS (2 o más UA)'!L34 ->  | J12: =CountCcolor('Solicitudes Acceso restringido'!$B$2,'Solicitudes Acceso restringido'!L9:L18) -> 4 | K12: ='Solicitudes Acceso restringido'!L19 -> 10.5 | L12: =COUNT('5 DÍAS (1 UA)'!U7:U16) -> 1 | M12: ='5 DÍAS (1 UA)'!U18 -> 3 | N12: =COUNT('5 DIAS (2 o más UA)'!L7:L16) -> 0 | O12: ='5 DIAS (2 o más UA)'!L17 ->  | P12: 22 | Q12: =AVERAGE(C12,G12,K12) -> 8.388888889 | R12: 6
A13: DCS | B13: =COUNT('9 DÍAS (1 UA)'!W11:W36) -> 1 | C13: ='9 DÍAS (1 UA)'!W38 -> 2 | D13: =COUNT('18 DÍAS (1 UA)'!W9:W20) -> 0 | E13: ='18 DÍAS (1 UA)'!W21 ->  | F13: =COUNT('9 DÍAS (2 o más UA)'!M7:M52) -> 3 | G13: ='9 DÍAS (2 o más UA)'!M54 -> 2 | H13: =COUNTIF('18 DÍAS (2 o más UA)'!M7:M8, ">10") -> 0 | I13: ='18 DÍAS (2 o más UA)'!M34 ->  | J13: =CountCcolor('Solicitudes Acceso restringido'!$B$2,'Solicitudes Acceso restringido'!M9:M18) -> 0 | K13: ='Solicitudes Acceso restringido'!M19 ->  | L13: =COUNT('5 DÍAS (1 UA)'!W7:W16) -> 0 | M13: ='5 DÍAS (1 UA)'!W18 ->  | N13: =COUNT('5 DIAS (2 o más UA)'!M7:M16) -> 0 | O13: ='5 DIAS (2 o más UA)'!M17 ->  | P13: 4 | Q13: =AVERAGE(C13,G13) -> 2 | R13: 1
A14: UT | B14: =COUNT('9 DÍAS (1 UA)'!Y11:Y36) -> 0 | C14: ='9 DÍAS (1 UA)'!Y38 ->  | D14: =COUNT('18 DÍAS (1 UA)'!Y9:Y20) -> 0 | E14: ='18 DÍAS (1 UA)'!Y21 ->  | F14: =COUNT('9 DÍAS (2 o más UA)'!N7:N52) -> 5 | G14: ='9 DÍAS (2 o más UA)'!N54 -> 1.2 | H14: =COUNTIF('18 DÍAS (2 o más UA)'!N7:N8, ">10") -> 0 | I14: ='18 DÍAS (2 o más UA)'!N34 ->  | J14: =CountCcolor('Solicitudes Acceso restringido'!$B$2,'Solicitudes Acceso restringido'!N9:N18) -> 0 | K14: ='Solicitudes Acceso restringido'!N19 ->  | L14: =COUNT('5 DÍAS (1 UA)'!Y7:Y16) -> 0 | M14: ='5 DÍAS (1 UA)'!Y18 ->  | N14: =COUNT('5 DIAS (2 o más UA)'!N7:N16) -> 0 | P14: 5 | Q14: =AVERAGE(G14) -> 1.2
A15: SUMA/PROMEDIO | B15: =SUM(B3:B14) -> 62 | C15: =AVERAGE(C3,C5,C6,C7,C8,C9,C10,C11,C12,C13) -> 4.534318182 | D15: =SUM(D3:D14) -> 0 | E15: =SUM(E3:E14)/4 ->  | F15: =SUM(F3:F14) -> 53 | G15: =AVERAGE(G3:G14) -> 4.416176471 | H15: =SUM(H3:H14) -> 0 | I15: =SUM(I3:I14)/5 ->  | J15: =SUM(J3:J14) -> 6 | K15: =AVERAGE(K6,K11,K12) -> 8.833333333 | L15: =SUM(L3:L14) -> 2 | M15: =AVERAGE(M6,M12) -> 3.5 | N15: =SUM(N3:N14) -> 0 | O15: =AVERAGE(O3:O14) ->  | P15: =SUM(P3:P14) -> 123 | Q15: =AVERAGE(Q3:Q14) -> 4.80730714
